[Event "1st Sivas Buruciye Open 2019"]
[Site "Sivas"]
[Date "2019.08.22"]
[Round "7"]
[White "Tofan, Ismail"]
[Black "Var, Sefa"]
[Result "1-0"]
[ECO "A12"]
[WhiteElo "1669"]
[BlackElo "1698"]
[Annotator "NA"]
[PlyCount "45"]
[EventDate "2019.08.19"]
[EventType "swiss"]
[EventCountry "TUR"]
[SourceTitle "playchess.com"]
[Source "ChessBase"]
[SourceQuality "1"]
[TimeControl "5400+30"]

1. Nf3 {[%emt 0:00:30]} d5 {[%emt 0:04:30]} 2. b3 {[%emt 0:01:30]} Nf6 {[%emt 0:00:30]} 3. e3 {[%emt 0:00:30]} Bg4 {[%emt 0:01:30]} 4. Be2 {[%emt 0:00:30]} e6 {[%emt 0:00:30]} 5. Bb2 {[%emt 0:02:30]} Nbd7 {[%emt 0:06:30]} 6. O-O {[%emt 0:03:30]} Bd6 {[%emt 0:01:30]} 7. c4 {[%emt 0:00:30]} c6 {[%emt 0:01:30]} 8. d4 {[%emt 0:02:30]} Ne4 {[%emt 0:07:30]} 9. Nbd2 {[%emt 0:03:30]} f5 {[%emt 0:06:30]} 10. h3 {[%emt 0:01:30]} Bh5 {[%emt 0:01:30]} 11. Ne5 {[%emt 0:01:30]} Bxe2 {[%emt 0:03:30]} 12. Qxe2 {[%emt 0:00:30]} Nxd2 {[%emt 0:03:30]} 13. Qxd2 {[%emt 0:00:30]} Nxe5 {[%emt 0:05:30]} 14. dxe5 {[%emt 0:00:30]} Bc7 {[%emt 0:00:30]} 15. Qb4 {[%emt 0:01:30]} Rb8 {[%emt 0:06:30]} 16. cxd5 {[%emt 0:04:30]} a5 {[%emt 0:13:30]} 17. Qc5 {[%emt 0:01:30]} Qxd5 {[%emt 0:01:30]} 18. Qxd5 {[%emt 0:03:30]} cxd5 {[%emt 0:02:30]} 19. Rac1 {[%emt 0:04:30]} Kd7 {[%emt 0:00:30]} 20. g4 {[%emt 0:02:30]} Rhf8 {[%emt 0:02:30]} 21. Ba3 {[%emt 0:00:30]} Rf7 {[%emt 0:01:30]} 22. Rxc7+ {[%emt 0:00:30]} Kxc7 {[%emt 0:00:30]} 23. Bd6+ {[%emt 0:00:30]} 1-0

[Event "1st Sivas Buruciye Open 2019"]
[Site "Sivas"]
[Date "2019.08.22"]
[Round "7"]
[White "Samli, Ibrahim"]
[Black "Sabahi, Ali Can"]
[Result "1-0"]
[ECO "B40"]
[WhiteElo "1655"]
[BlackElo "1825"]
[Annotator "NA"]
[PlyCount "131"]
[EventDate "2019.08.19"]
[EventType "swiss"]
[EventCountry "TUR"]
[SourceTitle "playchess.com"]
[Source "ChessBase"]
[SourceQuality "1"]
[TimeControl "5400+30"]

1. e4 c5 2. Nf3 e6 3. d4 cxd4 4. Nxd4 Nf6 5. Nc3 Bb4 6. Bd3 Nc6 7. Nxc6 bxc6 8. Bd2 d5 9. e5 Nd7 10. Qg4 Bf8 11. Qg3 g6 12. h4 Bg7 13. f4 Qb6 14. h5 Nc5 15. O-O-O Nxd3+ 16. Qxd3 Ba6 17. Qg3 O-O-O 18. hxg6 hxg6 19. Rxh8 Rxh8 20. Be3 Qa5 21. Qf2 Bf8 22. Kb1 c5 23. Bd2 Qc7 24. g3 Qc6 25. b3 d4 26. Na4 Bb7 27. Be1 Qf3 28. Qd2 Be7 29. Rc1 Kb8 30. Qa5 Rc8 31. Nb2 g5 32. Nd3 gxf4 33. gxf4 Rc6 34. Qb5 a6 35. Qa5 c4 {[%emt 1:34:40]} 36. bxc4 {[%emt 1:11:00]} Rxc4 {[%emt 0:00:30]} 37. a3 {[%emt 0:03:30]} Kc8 {[%emt 0:01:46]} 38. Kb2 {[%emt 0:04:30]} Bd8 {[%emt 0:02:08]} 39. Qd2 {[%emt 0:00:30]} Ra4 {[%emt 0:00:56]} 40. Qf2 {[%emt 0:09:30]} Qd5 {[%emt 0:00:33]} 41. Bb4 {[%emt 0:01:30]} a5 {[%emt 0:02:53]} 42. Bd6 {[%emt 0:00:30]} Qb5+ {[%emt 0:01:23]} 43. Ka1 {[%emt 0:00:34]} Bd5 {[%emt 0:00:20]} 44. Nb2 {[%emt 0:02:16]} Bc7 {[%emt 0:01:00]} 45. Qg3 {[%emt 0:01:59]} Bxd6 {[%emt 0:03:37]} 46. exd6 {[%emt 0:00:42]} Kd7 {[%emt 0:00:46]} 47. Rb1 {[%emt 0:03:17]} Rc4 {[%emt 0:02:18]} 48. Nxc4 {[%emt 0:01:29]} Qxc4 {[%emt 0:00:23]} 49. Qb3 {[%emt 0:00:46]} Qxb3 {[%emt 0:00:36]} 50. cxb3 {[%emt 0:00:47]} Kxd6 {[%emt 0:00:01]} 51. Kb2 {[%emt 0:00:13]} Bf3 {[%emt 0:00:58]} 52. Re1 {[%emt 0:00:53]} d3 {[%emt 0:00:36]} 53. Kc3 {[%emt 0:00:51]} Be2 {[%emt 0:00:04]} 54. Rc1 {[%emt 0:00:33]} e5 {[%emt 0:00:45]} 55. fxe5+ {[%emt 0:00:37]} Kxe5 {[%emt 0:00:00]} 56. Kd2 {[%emt 0:00:23]} Kd5 {[%emt 0:00:25]} 57. b4 {[%emt 0:00:36]} axb4 {[%emt 0:00:50]} 58. axb4 {[%emt 0:00:04]} Kd4 {[%emt 0:00:00]} 59. b5 {[%emt 0:00:31]} Bf3 {[%emt 0:00:10]} 60. b6 {[%emt 0:00:19]} f5 {[%emt 0:00:23]} 61. Rc7 {[%emt 0:00:22]} f4 {[%emt 0:00:31]} 62. b7 {[%emt 0:00:15]} Bxb7 {[%emt 0:00:08]} 63. Rxb7 {[%emt 0:00:33]} Ke4 {[%emt 0:00:02]} 64. Rb4+ {[%emt 0:03:58]} Kf3 {[%emt 0:00:06]} 65. Kxd3 {[%emt 0:00:29]} Kg3 {[%emt 0:00:34]} 66. Ke4 {[%emt 0:00:56]} 1-0

[Event "1st Sivas Buruciye Open 2019"]
[Site "Sivas"]
[Date "2019.08.22"]
[Round "7"]
[White "Ozen, Sadettin Alperen"]
[Black "Ismayilov, Arturan"]
[Result "1-0"]
[ECO "B98"]
[WhiteElo "1549"]
[BlackElo "1561"]
[Annotator "NA"]
[PlyCount "47"]
[EventDate "2019.08.19"]
[EventType "swiss"]
[EventCountry "TUR"]
[SourceTitle "playchess.com"]
[Source "ChessBase"]
[SourceQuality "1"]
[TimeControl "5400+30"]

1. e4 {[%emt 0:00:30]} c5 {[%emt 0:00:30]} 2. Nf3 {[%emt 0:00:30]} d6 {[%emt 0:00:30]} 3. d4 {[%emt 0:00:00]} cxd4 {[%emt 0:00:00]} 4. Nxd4 {[%emt 0:00:00]} Nf6 {[%emt 0:00:00]} 5. Nc3 {[%emt 0:01:30]} a6 {[%emt 0:00:00]} 6. Bg5 {[%emt 0:01:30]} e6 {[%emt 0:00:00]} 7. Qe2 {[%emt 0:00:30]} Be7 {[%emt 0:00:30]} 8. f4 {[%emt 0:00:00]} Nc6 {[%emt 0:01:30]} 9. Nxc6 {[%emt 0:02:00]} bxc6 {[%emt 0:00:00]} 10. O-O-O {[%emt 0:00:00]} Qc7 {[%emt 0:01:00]} 11. e5 {[%emt 0:00:00]} dxe5 {[%emt 0:00:30]} 12. fxe5 {[%emt 0:00:30]} Nd5 {[%emt 0:00:30]} 13. Ne4 {[%emt 0:00:30]} Qxe5 {[%emt 0:00:30]} 14. Bxe7 {[%emt 0:02:30]} Kxe7 {[%emt 0:03:30]} 15. Qd3 {[%emt 0:03:30]} Nb4 {[%emt 0:05:30]} 16. Qc4 {[%emt 0:02:30]} Rb8 {[%emt 0:04:30]} 17. c3 {[%emt 0:00:30]} Nxa2+ {[%emt 0:03:30]} 18. Qxa2 {[%emt 0:00:30]} Qxe4 {[%emt 0:00:30]} 19. Qa3+ {[%emt 0:00:30]} Kf6 {[%emt 0:02:30]} 20. Bd3 {[%emt 0:00:30]} Qe3+ {[%emt 0:00:30]} 21. Kb1 {[%emt 0:00:30]} g6 {[%emt 0:00:30]} 22. Qd6 {[%emt 0:00:30]} Rb7 {[%emt 0:09:30]} 23. Rhe1 {[%emt 0:00:30]} Rd7 {[%emt 0:02:30]} 24. Qxd7 {[%emt 0:01:30]} 1-0

[Event "1st Sivas Buruciye Open 2019"]
[Site "Sivas"]
[Date "2019.08.22"]
[Round "7"]
[White "Babayeva, Nasrin"]
[Black "Sibli, Murat Yigit"]
[Result "1/2-1/2"]
[ECO "E09"]
[WhiteElo "1547"]
[BlackElo "1583"]
[Annotator "NA"]
[PlyCount "96"]
[EventDate "2019.08.19"]
[EventType "swiss"]
[EventCountry "TUR"]
[SourceTitle "playchess.com"]
[Source "ChessBase"]
[SourceQuality "1"]
[TimeControl "5400+30"]

1. c4 Nf6 2. Nf3 e6 3. g3 Be7 4. Bg2 O-O 5. O-O d5 6. Qc2 c6 7. d4 b6 8. b3 Bb7 9. Bb2 Nbd7 10. Nbd2 Rc8 11. Rac1 c5 12. Qb1 Bd6 13. cxd5 exd5 14. Rfd1 Qe7 15. e3 Rfd8 16. Qa1 Ne4 17. dxc5 Bxc5 18. Nxe4 dxe4 19. Nd4 g6 20. a3 a5 21. Ne2 Bd6 22. Rxc8 Rxc8 23. Bh3 f5 24. Nd4 Rf8 25. Bf1 Ne5 26. Nb5 Bb8 27. a4 {[%emt 1:12:30]} Nf3+ {[%emt 1:34:24]} 28. Kh1 {[%emt 0:00:30]} Be5 {[%emt 0:01:12]} 29. Bc4+ {[%emt 0:02:30]} Kg7 {[%emt 0:02:19]} 30. Bxe5+ {[%emt 0:01:30]} Nxe5 {[%emt 0:00:06]} 31. Rd6 {[%emt 0:06:30]} Rf6 {[%emt 0:00:58]} 32. Rxf6 {[%emt 0:03:09]} Qxf6 {[%emt 0:01:03]} 33. Nc7 {[%emt 0:00:28]} Bc6 {[%emt 0:04:12]} 34. Ne6+ {[%emt 0:00:57]} Kh6 {[%emt 0:00:36]} 35. Qf1 {[%emt 0:01:22]} g5 {[%emt 0:00:40]} 36. Nd4 {[%emt 0:06:45]} Bd7 {[%emt 0:00:16]} 37. Bg8 {[%emt 0:01:25]} Kg7 {[%emt 0:00:49]} 38. Bc4 {[%emt 0:02:04]} Nf3 {[%emt 0:00:56]} 39. Nxf3 {[%emt 0:01:34]} exf3 {[%emt 0:00:01]} 40. Qd1 {[%emt 0:00:00]} Bc6 {[%emt 0:00:28]} 41. Qd4 {[%emt 0:00:16]} Kg6 {[%emt 0:01:39]} 42. Kg1 {[%emt 0:01:20]} f4 {[%emt 0:00:33]} 43. Bd3+ {[%emt 0:00:45]} Kg7 {[%emt 0:00:30]} 44. Qxf6+ {[%emt 0:00:44]} Kxf6 {[%emt 0:00:02]} 45. Bxh7 {[%emt 0:00:00]} fxe3 {[%emt 0:00:34]} 46. fxe3 {[%emt 0:00:00]} g4 {[%emt 0:00:08]} 47. Bg8 {[%emt 0:00:30]} Ke5 {[%emt 0:00:45]} 48. Kf2 {[%emt 0:00:12]} Be4 {[%emt 0:00:52]} 1/2-1/2

[Event "1st Sivas Buruciye Open 2019"]
[Site "Sivas"]
[Date "2019.08.22"]
[Round "7"]
[White "Toksan, Hayati"]
[Black "Subasi, Fidel"]
[Result "1-0"]
[ECO "A84"]
[WhiteElo "1408"]
[BlackElo "1683"]
[Annotator "NA"]
[PlyCount "89"]
[EventDate "2019.08.19"]
[EventType "swiss"]
[EventCountry "TUR"]
[SourceTitle "playchess.com"]
[Source "ChessBase"]
[SourceQuality "1"]
[TimeControl "5400+30"]

1. d4 e6 2. c4 f5 3. Nc3 Nf6 4. g3 Bb4 5. Bd2 O-O 6. a3 Bxc3 7. Bxc3 d6 8. b4 Ne4 9. Bb2 f4 10. Nf3 d5 11. c5 Qe8 12. Bc1 fxg3 13. hxg3 a5 14. Bf4 axb4 15. axb4 Rxa1 16. Qxa1 Qb5 17. Qb2 Nc6 18. Bg2 Qxb4+ 19. Qxb4 Nxb4 20. O-O Nc3 21. Bxc7 Nxe2+ 22. Kh2 Nc6 23. Rd1 Bd7 24. Rd2 Nc3 25. Rb2 Bc8 26. Bd6 Re8 27. Bf1 Ne4 28. Bf4 g5 29. Be3 Rf8 30. Kg2 h6 31. Bd3 Nf6 32. Ne5 Nxe5 33. dxe5 Nd7 34. Bd4 Nb8 35. Be3 Nc6 36. f4 Rf7 37. Rb1 {[%emt 1:08:30]} Bd7 {[%emt 1:42:18]} 38. Rxb7 {[%emt 0:00:30]} Be8 {[%emt 0:00:46]} 39. Rb6 {[%emt 0:05:30]} g4 {[%emt 0:02:27]} 40. Bg6 {[%emt 0:00:30]} Ra7 {[%emt 0:02:50]} 41. Bxe8 {[%emt 0:00:30]} Ra2+ {[%emt 0:00:04]} 42. Bf2 {[%emt 0:00:00]} Nd4 {[%emt 0:00:15]} 43. c6 {[%emt 0:01:00]} Nc2 {[%emt 0:01:08]} 44. Rb1 {[%emt 0:01:30]} Ne3+ {[%emt 0:00:50]} 45. Kg1 {[%emt 0:00:00]} 1-0

[Event "1st Sivas Buruciye Open 2019"]
[Site "Sivas"]
[Date "2019.08.22"]
[Round "7"]
[White "Uslu, Ali Yigit"]
[Black "Akbayir, Eymen"]
[Result "1/2-1/2"]
[ECO "C54"]
[WhiteElo "1249"]
[BlackElo "1108"]
[Annotator "NA"]
[PlyCount "99"]
[EventDate "2019.08.19"]
[EventType "swiss"]
[EventCountry "TUR"]
[SourceTitle "playchess.com"]
[Source "ChessBase"]
[SourceQuality "1"]
[TimeControl "5400+30"]

1. e4 e5 2. Nf3 Nc6 3. Bc4 Bc5 4. d3 Nf6 5. Bb3 d6 6. c3 h6 7. h3 O-O 8. O-O Re8 9. Nbd2 d5 10. exd5 Nxd5 11. Ne4 Bb6 12. Re1 Bf5 13. Ng3 Bg6 14. Bc2 Nf6 15. Nf1 e4 16. dxe4 Qxd1 17. Rxd1 Bxe4 18. Bxe4 Nxe4 19. Be3 Rad8 20. Bxb6 axb6 21. Ne3 Nf6 22. Kf1 Kf8 23. Rd2 Rxd2 24. Nxd2 Rd8 25. Nf3 g6 26. g3 Ne4 27. Rd1 Rxd1+ 28. Nxd1 Ke7 29. Ke2 Ke6 30. Ke3 f5 31. Nd4+ {[%emt 1:25:30]} Ke5 {[%emt 1:21:30]} 32. Nb5 {[%emt 0:00:30]} Ne7 {[%emt 0:02:30]} 33. Nxc7 {[%emt 0:00:30]} Nd5+ {[%emt 0:00:30]} 34. Nxd5 {[%emt 0:00:30]} Kxd5 {[%emt 0:00:30]} 35. g4 {[%emt 0:00:30]} Ke5 {[%emt 0:00:30]} 36. f3 {[%emt 0:00:30]} f4+ {[%emt 0:01:30]} 37. Kd3 {[%emt 0:02:00]} Ng5 {[%emt 0:00:30]} 38. Ke2 {[%emt 0:00:27]} Nxh3 {[%emt 0:00:30]} 39. b3 {[%emt 0:00:22]} Ng5 {[%emt 0:00:30]} 40. Nb2 {[%emt 0:00:31]} Kd5 {[%emt 0:01:40]} 41. Nc4 {[%emt 0:00:46]} b5 {[%emt 0:01:31]} 42. Nb6+ {[%emt 0:00:16]} Ke6 {[%emt 0:03:49]} 43. a4 {[%emt 0:00:36]} bxa4 {[%emt 0:00:27]} 44. Nxa4 {[%emt 0:00:08]} Kd6 {[%emt 0:00:32]} 45. Nb2 {[%emt 0:01:13]} Kd5 {[%emt 0:01:02]} 46. Nc4 {[%emt 0:00:31]} Ne6 {[%emt 0:00:50]} 47. Nb6+ {[%emt 0:00:32]} Kc5 {[%emt 0:00:30]} 48. Nd7+ {[%emt 0:00:36]} Kd6 {[%emt 0:01:02]} 49. Nb6 {[%emt 0:00:19]} Kc6 {[%emt 0:00:20]} 50. Nc4 {[%emt 0:00:13]} 1/2-1/2

[Event "1st Sivas Buruciye Open 2019"]
[Site "Sivas"]
[Date "2019.08.23"]
[Round "8"]
[White "Bagaturov, Giorgi"]
[Black "Barsov, Alexei"]
[Result "1/2-1/2"]
[ECO "E05"]
[WhiteElo "2417"]
[BlackElo "2383"]
[Annotator "NA"]
[PlyCount "28"]
[EventDate "2019.08.19"]
[EventType "swiss"]
[EventCountry "TUR"]
[SourceTitle "playchess.com"]
[Source "ChessBase"]
[SourceQuality "1"]
[TimeControl "5400+30"]

1. d4 Nf6 2. c4 e6 3. Nf3 d5 4. g3 Be7 5. Bg2 O-O 6. O-O dxc4 7. Qa4 a6 8. Qxc4 b5 9. Qc2 Bb7 10. Bd2 Be4 11. Qc1 Bb7 12. Qc2 Be4 13. Qc1 Bb7 14. Qc2 Be4 1/2-1/2

[Event "1st Sivas Buruciye Open 2019"]
[Site "Sivas"]
[Date "2019.08.23"]
[Round "8"]
[White "Saraci, Nderim"]
[Black "Annaberdiev, Meilis"]
[Result "1/2-1/2"]
[ECO "B40"]
[WhiteElo "2398"]
[BlackElo "2518"]
[Annotator "RC"]
[PlyCount "77"]
[EventDate "2019.08.19"]
[EventType "swiss"]
[EventCountry "TUR"]
[SourceTitle "playchess.com"]
[Source "ChessBase"]
[SourceQuality "1"]
[TimeControl "5400+30"]

1. e4 c5 2. Nf3 e6 3. g3 b6 4. Bg2 Bb7 5. Nc3 Nf6 6. e5 Ne4 7. Nxe4 Bxe4 8. d3 Bb7 9. O-O Be7 10. d4 O-O 11. Be3 Nc6 12. c4 Nxd4 13. Nxd4 Bxg2 14. Nxe6 dxe6 15. Qxd8 Raxd8 16. Kxg2 f6 17. Rad1 fxe5 18. Rxd8 Bxd8 19. Rd1 e4 20. Rd7 Bf6 21. b3 Rf7 22. Rd6 Re7 23. a4 Kf7 24. Kf1 Rb7 25. Ke2 Ke7 26. Rd2 h6 27. h3 Bc3 28. Rd1 e5 29. Rd5 Bd4 30. Bxd4 exd4 31. Re5+ Kd6 32. Rxe4 g5 33. h4 Re7 34. Rxe7 Kxe7 35. hxg5 hxg5 36. f3 Kf6 37. Kd2 Ke5 38. Kd3 Kf5 39. Kd2 1/2-1/2

[Event "1st Sivas Buruciye Open 2019"]
[Site "Sivas"]
[Date "2019.08.23"]
[Round "8"]
[White "Abdulov, Orkhan"]
[Black "Gasimov, Parviz"]
[Result "1-0"]
[ECO "C06"]
[WhiteElo "2397"]
[BlackElo "2342"]
[Annotator "ChessBase"]
[PlyCount "123"]
[EventDate "2019.08.19"]
[EventType "swiss"]
[EventCountry "TUR"]
[SourceTitle "playchess.com"]
[Source "ChessBase"]
[SourceQuality "1"]
[TimeControl "5400+30"]

1. e4 {[%emt 0:14:30]} e6 {[%emt 0:00:30]} 2. d4 {[%emt 0:01:30]} d5 {[%emt 0:00:30]} 3. Nd2 {[%emt 0:00:00]} Nf6 {[%emt 0:00:30]} 4. e5 {[%emt 0:00:00]} Nfd7 {[%emt 0:00:00]} 5. Bd3 {[%emt 0:01:30]} c5 {[%emt 0:00:00]} 6. c3 {[%emt 0:00:30]} Nc6 {[%emt 0:00:30]} 7. Ne2 {[%emt 0:00:00]} cxd4 {[%emt 0:00:00]} 8. cxd4 {[%emt 0:00:00]} f6 {[%emt 0:00:00]} 9. exf6 {[%emt 0:00:00]} Nxf6 {[%emt 0:03:30]} 10. Nf3 {[%emt 0:01:00]} Bd6 {[%emt 0:00:30]} 11. O-O {[%emt 0:00:30]} O-O {[%emt 0:00:30]} 12. Bf4 {[%emt 0:00:30]} Bxf4 {[%emt 0:00:30]} 13. Nxf4 {[%emt 0:00:30]} Ng4 {[%emt 0:00:30]} 14. Qd2 {[%emt 0:00:30]} Qf6 {[%emt 0:01:30]} 15. Nh5 {[%emt 0:01:30]} Qh6 {[%emt 0:00:30]} 16. Qxh6 {[%emt 0:01:30]} Nxh6 {[%emt 0:00:00]} 17. Rfd1 {[%emt 0:01:30]} a6 {[%emt 0:08:00]} 18. Rac1 {[%emt 0:02:30]} g6 {[%emt 0:08:30]} 19. Ng3 {[%emt 0:01:30]} Bd7 {[%emt 0:02:30]} 20. Bb1 {[%emt 0:03:30]} Rac8 {[%emt 0:05:30]} 21. Ne2 {[%emt 0:03:30]} Nf7 {[%emt 0:10:30]} 22. h4 {[%emt 0:02:30]} Nd6 {[%emt 0:03:30]} 23. b3 {[%emt 0:01:30]} Kg7 {[%emt 0:10:30]} 24. Ne5 {[%emt 0:02:30]} Rc7 {[%emt 0:04:30]} 25. Rc3 {[%emt 0:03:30]} Nb5 {[%emt 0:06:30]} 26. Re3 {[%emt 0:00:30]} Nxe5 {[%emt 0:01:30]} 27. dxe5 {[%emt 0:00:30]} Rfc8 {[%emt 0:01:30]} 28. h5 {[%emt 0:15:30]} Nc3 {[%emt 0:02:30]} 29. Nxc3 {[%emt 0:00:30]} Rxc3 {[%emt 0:00:30]} 30. Rxc3 {[%emt 0:00:30]} Rxc3 {[%emt 0:00:30]} 31. hxg6 {[%emt 0:00:30]} hxg6 {[%emt 0:00:00]} 32. Kf1 {[%emt 0:01:30]} Rc8 {[%emt 0:05:00]} 33. Ke2 {[%emt 0:00:30]} Rh8 {[%emt 0:00:30]} 34. Ke3 {[%emt 0:01:30]} Rh2 {[%emt 0:03:30]} 35. Rg1 {[%emt 0:02:30]} g5 {[%emt 0:05:33]} 36. Kd4 {[%emt 0:00:30]} b6 {[%emt 0:04:39]} 37. Bd3 {[%emt 0:01:30]} a5 {[%emt 0:02:24]} 38. Rc1 {[%emt 0:00:30]} Kf8 {[%emt 0:00:19]} 39. Rc7 {[%emt 0:01:30]} Ke8 {[%emt 0:00:38]} 40. Rb7 {[%emt 0:05:30]} Rxg2 {[%emt 0:01:08]} 41. Rxb6 {[%emt 0:00:30]} Rxf2 {[%emt 0:00:00]} 42. Rb8+ {[%emt 0:04:30]} Ke7 {[%emt 0:00:46]} 43. Rb7 {[%emt 0:01:30]} Kd8 {[%emt 0:01:03]} 44. Kc5 {[%emt 0:00:30]} Rf3 {[%emt 0:00:30]} 45. Kd6 {[%emt 0:00:30]} Rxd3 {[%emt 0:00:30]} 46. Rxd7+ {[%emt 0:00:30]} Kc8 {[%emt 0:00:30]} 47. Rc7+ {[%emt 0:00:30]} Kb8 {[%emt 0:00:30]} 48. Rg7 {[%emt 0:00:30]} Rg3 {[%emt 0:00:30]} 49. Kxe6 {[%emt 0:00:30]} d4 {[%emt 0:08:17]} 50. Rd7 {[%emt 0:01:30]} d3 {[%emt 0:00:09]} 51. Kf5 {[%emt 0:00:30]} Re3 {[%emt 0:01:44]} 52. Rd5 {[%emt 0:01:30]} Kc7 {[%emt 0:01:15]} 53. Rxa5 {[%emt 0:01:30]} g4 {[%emt 0:00:21]} 54. Kxg4 {[%emt 0:00:30]} Kc6 {[%emt 0:00:41]} 55. Kf4 {[%emt 0:02:30]} d2 {[%emt 0:00:31]} 56. Ra6+ {[%emt 0:00:30]} Kc5 {[%emt 0:00:52]} 57. Rd6 {[%emt 0:00:30]} Re2 {[%emt 0:00:00]} 58. a3 {[%emt 0:00:30]} Rh2 {[%emt 0:00:34]} 59. Rd8 {[%emt 0:02:55]} Rh3 {[%emt 0:00:34]} 60. Rxd2 {[%emt 0:00:40]} Rxb3 {[%emt 0:00:02]} 61. e6 {[%emt 0:00:00]} Rb1 {[%emt 0:00:40]} 62. Ke5 {[%emt 0:00:28]} 1-0

[Event "1st Sivas Buruciye Open 2019"]
[Site "Sivas"]
[Date "2019.08.23"]
[Round "8"]
[White "Odeev, Handszar"]
[Black "Caner, Resul"]
[Result "1-0"]
[ECO "C00"]
[WhiteElo "2360"]
[BlackElo "1873"]
[Annotator "ChessBase"]
[PlyCount "71"]
[EventDate "2019.08.19"]
[EventType "swiss"]
[EventCountry "TUR"]
[SourceTitle "playchess.com"]
[Source "ChessBase"]
[SourceQuality "1"]
[TimeControl "5400+30"]

1. e4 e6 2. Qe2 Be7 3. Qg4 {[%emt 0:04:30]} Nf6 {[%emt 0:05:30]} 4. Qxg7 {[%emt 0:00:30]} Rg8 {[%emt 0:00:30]} 5. Qh6 {[%emt 0:00:00]} Nc6 {[%emt 0:05:30]} 6. Nf3 {[%emt 0:23:00]} Bc5 {[%emt 0:00:30]} 7. e5 {[%emt 0:09:30]} Bxf2+ {[%emt 0:03:30]} 8. Ke2 {[%emt 0:00:00]} Rg6 {[%emt 0:00:30]} 9. Qh3 {[%emt 0:00:00]} Ng4 {[%emt 0:00:30]} 10. Qxh7 {[%emt 0:00:30]} Bd4 {[%emt 0:01:30]} 11. Qh8+ {[%emt 0:16:30]} Ke7 {[%emt 0:01:30]} 12. Qh4+ {[%emt 0:00:00]} Ke8 {[%emt 0:00:30]} 13. Qxd8+ {[%emt 0:01:00]} Kxd8 {[%emt 0:00:30]} 14. c3 {[%emt 0:00:00]} Bxe5 {[%emt 0:02:30]} 15. Nxe5 {[%emt 0:01:00]} Ngxe5 {[%emt 0:03:30]} 16. d4 {[%emt 0:00:30]} Ng4 {[%emt 0:02:30]} 17. h3 {[%emt 0:01:30]} Nf6 {[%emt 0:00:30]} 18. Kf3 {[%emt 0:00:30]} e5 {[%emt 0:03:30]} 19. Bd3 {[%emt 0:09:30]} Rg8 {[%emt 0:00:30]} 20. Re1 {[%emt 0:03:30]} d6 {[%emt 0:03:30]} 21. Be3 {[%emt 0:03:30]} Be6 {[%emt 0:04:30]} 22. Kf2 {[%emt 0:00:30]} e4 {[%emt 0:06:30]} 23. Bf1 {[%emt 0:00:30]} Nd5 {[%emt 0:00:30]} 24. c4 {[%emt 0:00:30]} Nxe3 {[%emt 0:00:30]} 25. Kxe3 {[%emt 0:00:30]} Nb4 {[%emt 0:11:30]} 26. Na3 {[%emt 0:02:30]} f5 {[%emt 0:01:30]} 27. d5 {[%emt 0:04:02]} Bd7 {[%emt 0:00:30]} 28. Kf4 {[%emt 0:00:33]} c6 {[%emt 0:07:30]} 29. Rad1 {[%emt 0:04:13]} Kc7 {[%emt 0:02:30]} 30. Rd2 {[%emt 0:00:56]} Rae8 {[%emt 0:01:30]} 31. Nc2 {[%emt 0:03:56]} Nd3+ {[%emt 0:06:30]} 32. Bxd3 {[%emt 0:00:30]} exd3 {[%emt 0:00:00]} 33. Rxe8 {[%emt 0:01:36]} Rxe8 {[%emt 0:01:00]} 34. Ne3 {[%emt 0:01:05]} Re4+ {[%emt 0:01:30]} 35. Kf3 {[%emt 0:00:05]} cxd5 {[%emt 0:00:30]} 36. Nxd5+ {[%emt 0:00:40]} 1-0

[Event "1st Sivas Buruciye Open 2019"]
[Site "Sivas"]
[Date "2019.08.23"]
[Round "8"]
[White "Lortkipanidze, Nodar"]
[Black "Darban, Morteza"]
[Result "1/2-1/2"]
[ECO "D01"]
[WhiteElo "2336"]
[BlackElo "2280"]
[Annotator "NA"]
[PlyCount "35"]
[EventDate "2019.08.19"]
[EventType "swiss"]
[EventCountry "TUR"]
[SourceTitle "playchess.com"]
[Source "ChessBase"]
[SourceQuality "1"]
[TimeControl "5400+30"]

1. d4 {[%emt 1:30:30]} Nf6 {[%emt 1:30:30]} 2. Nc3 {[%emt 0:00:30]} d5 {[%emt 0:00:30]} 3. Bg5 {[%emt 0:00:30]} Nbd7 {[%emt 0:00:30]} 4. Qd3 {[%emt 0:00:30]} g6 {[%emt 0:00:30]} 5. O-O-O {[%emt 0:00:30]} Bg7 {[%emt 0:00:30]} 6. f3 {[%emt 0:00:30]} O-O {[%emt 0:00:00]} 7. e4 {[%emt 0:00:00]} c6 {[%emt 0:00:00]} 8. Qd2 {[%emt 0:00:00]} b5 {[%emt 0:00:00]} 9. e5 {[%emt 0:00:00]} Ne8 {[%emt 0:00:00]} 10. h4 {[%emt 0:00:00]} f6 {[%emt 0:00:00]} 11. exf6 {[%emt 0:00:00]} exf6 {[%emt 0:00:00]} 12. Bh6 {[%emt 0:00:00]} Bxh6 {[%emt 0:00:00]} 13. Qxh6 {[%emt 0:00:00]} Nd6 {[%emt 0:00:00]} 14. Bd3 {[%emt 0:00:00]} Rf7 {[%emt 0:00:00]} 15. Nh3 {[%emt 0:00:00]} Nf8 {[%emt 0:00:00]} 16. g4 {[%emt 0:00:00]} a5 {[%emt 0:00:00]} 17. Rde1 {[%emt 0:00:00]} Raa7 {[%emt 0:00:00]} 18. Ne2 {[%emt 0:00:00]} 1/2-1/2

[Event "1st Sivas Buruciye Open 2019"]
[Site "Sivas"]
[Date "2019.08.23"]
[Round "8"]
[White "Hasanzade, Toghrul"]
[Black "Sevdimaliyev, Urfan"]
[Result "1/2-1/2"]
[ECO "D02"]
[WhiteElo "2314"]
[BlackElo "2348"]
[Annotator "NA"]
[PlyCount "44"]
[EventDate "2019.08.19"]
[EventType "swiss"]
[EventCountry "TUR"]
[SourceTitle "playchess.com"]
[Source "ChessBase"]
[SourceQuality "1"]
[TimeControl "5400+30"]

1. d4 d5 2. Nf3 Nf6 3. Bf4 e6 4. e3 Bd6 {[%emt 0:03:00]} 5. Bxd6 {[%emt 0:04:30]} cxd6 {[%emt 0:00:30]} 6. c4 {[%emt 0:00:00]} dxc4 {[%emt 0:00:30]} 7. Bxc4 {[%emt 0:00:00]} O-O {[%emt 0:00:00]} 8. O-O {[%emt 0:00:30]} b6 {[%emt 0:00:00]} 9. Nc3 {[%emt 0:00:30]} Bb7 {[%emt 0:00:30]} 10. d5 {[%emt 0:00:30]} e5 {[%emt 0:00:30]} 11. Rc1 {[%emt 0:01:30]} a6 {[%emt 0:03:30]} 12. a3 {[%emt 0:03:30]} Nbd7 {[%emt 0:00:30]} 13. b4 {[%emt 0:00:00]} b5 {[%emt 0:01:30]} 14. Bb3 {[%emt 0:00:00]} Nb6 {[%emt 0:00:00]} 15. e4 {[%emt 0:02:30]} Rc8 {[%emt 0:04:00]} 16. Qd3 {[%emt 0:02:30]} Qd7 {[%emt 0:02:30]} 17. Rc2 {[%emt 0:00:30]} Rc7 {[%emt 0:01:30]} 18. Rfc1 {[%emt 0:01:30]} Rfc8 {[%emt 0:02:30]} 19. Nd2 {[%emt 0:01:30]} h6 {[%emt 0:03:30]} 20. h3 {[%emt 0:00:30]} Nh5 {[%emt 0:03:30]} 21. Qe3 {[%emt 0:03:30]} Nf4 {[%emt 0:05:30]} 22. Kh2 {[%emt 0:00:30]} Nc4 {[%emt 0:01:30]} 1/2-1/2